[Event "Late-Titled-Tuesday-Blitz-October-24-2023"]
[Site "Chess.com"]
[Date "2023.10.24"]
[Round "2"]
[White "Elsa167"]
[Black "Likvidator228"]
[Result "1-0"]
[WhiteElo "2899"]
[BlackElo "2590"]
[TimeControl "180+1"]
[EndTime "14:17:18 PDT"]
[Termination "Elsa167 won by resignation"]

1. d4 {[%clk 0:03:00.9]} 1... f5 {[%clk 0:02:54.2]} 2. Nc3 {[%clk 0:02:52.3]}
2... Nf6 {[%clk 0:02:53.4]} 3. Bg5 {[%clk 0:02:52.3]} 3... d5 {[%clk 0:02:53.7]}
4. Bxf6 {[%clk 0:02:52.5]} 4... exf6 {[%clk 0:02:53.8]} 5. e3 {[%clk 0:02:53.2]}
5... Be6 {[%clk 0:02:53.3]} 6. Bd3 {[%clk 0:02:53.1]} 6... Nc6 {[%clk
0:02:51.7]} 7. a3 {[%clk 0:02:53.2]} 7... Qd7 {[%clk 0:02:44.3]} 8. Nge2 {[%clk
0:02:51.6]} 8... g6 {[%clk 0:02:42.6]} 9. Qd2 {[%clk 0:02:47.5]} 9... O-O-O
{[%clk 0:02:37.6]} 10. b4 {[%clk 0:02:40.8]} 10... Bd6 {[%clk 0:02:29.2]} 11.
O-O {[%clk 0:02:32.4]} 11... h5 {[%clk 0:02:23.9]} 12. f4 {[%clk 0:02:26.7]}
12... g5 {[%clk 0:02:20.3]} 13. Na4 {[%clk 0:02:01]} 13... b6 {[%clk 0:02:12.4]}
14. Bb5 {[%clk 0:01:49.9]} 14... Kb7 {[%clk 0:01:56]} 15. Qd3 {[%clk 0:01:41.1]}
15... h4 {[%clk 0:01:41.1]} 16. Rab1 {[%clk 0:01:39.6]} 16... Be7 {[%clk
0:01:33]} 17. Rb3 {[%clk 0:01:30.9]} 17... Rhf8 {[%clk 0:01:06.4]} 18. Rc3
{[%clk 0:01:26.2]} 18... g4 {[%clk 0:00:48.7]} 19. Bxc6+ {[%clk 0:01:23.3]}
19... Qxc6 {[%clk 0:00:49.6]} 20. Rxc6 {[%clk 0:01:24]} 20... Kxc6 {[%clk
0:00:50.4]} 21. Qa6 {[%clk 0:01:09]} 21... Ra8 {[%clk 0:00:50]} 22. Rc1 {[%clk
0:01:06.3]} 22... Bc8 {[%clk 0:00:49.1]} 23. Qd3 {[%clk 0:01:05.3]} 23... b5
{[%clk 0:00:48.9]} 24. Nc5 {[%clk 0:00:52.7]} 24... a5 {[%clk 0:00:45.1]} 25.
Nc3 {[%clk 0:00:51.8]} 25... Rb8 {[%clk 0:00:40.9]} 26. bxa5 {[%clk 0:00:50.2]}
26... Bxc5 {[%clk 0:00:38.4]} 27. dxc5 {[%clk 0:00:51.1]} 27... Rd8 {[%clk
0:00:38.1]} 28. Qd4 {[%clk 0:00:50.8]} 1-0

[Event "Late-Titled-Tuesday-Blitz-October-24-2023"]
[Site "Chess.com"]
[Date "2023.10.24"]
[Round "2"]
[White "GP9isback23"]
[Black "Mykola-Bortnyk"]
[Result "0-1"]
[WhiteElo "2613"]
[BlackElo "2961"]
[TimeControl "180+1"]
[EndTime "14:17:30 PDT"]
[Termination "Mykola-Bortnyk won by resignation"]

1. d4 {[%clk 0:03:00.4]} 1... Nf6 {[%clk 0:02:57.3]} 2. Nf3 {[%clk 0:03:00.5]}
2... e6 {[%clk 0:02:57.4]} 3. e3 {[%clk 0:03:00.9]} 3... c5 {[%clk 0:02:57.3]}
4. Be2 {[%clk 0:03:01.8]} 4... b6 {[%clk 0:02:57.7]} 5. O-O {[%clk 0:03:01.9]}
5... Bb7 {[%clk 0:02:58.1]} 6. c4 {[%clk 0:02:59.4]} 6... cxd4 {[%clk
0:02:55.6]} 7. Nxd4 {[%clk 0:02:53.5]} 7... Be7 {[%clk 0:02:52.8]} 8. b3 {[%clk
0:02:53.1]} 8... O-O {[%clk 0:02:51.4]} 9. Bb2 {[%clk 0:02:53.7]} 9... d5 {[%clk
0:02:51.6]} 10. Nc3 {[%clk 0:02:52.9]} 10... dxc4 {[%clk 0:02:45.3]} 11. Bxc4
{[%clk 0:02:53.8]} 11... Nc6 {[%clk 0:02:36.2]} 12. Nxc6 {[%clk 0:02:40.8]}
12... Bxc6 {[%clk 0:02:33.5]} 13. Qxd8 {[%clk 0:02:41.4]} 13... Rfxd8 {[%clk
0:02:32.1]} 14. Rfd1 {[%clk 0:02:42]} 14... Nd7 {[%clk 0:02:13.5]} 15. f3 {[%clk
0:02:26.1]} 15... Bc5 {[%clk 0:02:07.3]} 16. Kf2 {[%clk 0:02:26.1]} 16... Ne5
{[%clk 0:02:07.3]} 17. Be2 {[%clk 0:02:23.3]} 17... f6 {[%clk 0:01:58]} 18. Nb5
{[%clk 0:01:57.8]} 18... Kf7 {[%clk 0:01:43.7]} 19. Nd4 {[%clk 0:01:43.8]} 19...
Bb7 {[%clk 0:01:39.2]} 20. Rac1 {[%clk 0:01:41.2]} 20... a5 {[%clk 0:01:35.9]}
21. a3 {[%clk 0:01:40.1]} 21... Rac8 {[%clk 0:01:32.7]} 22. h3 {[%clk
0:01:14.1]} 22... h5 {[%clk 0:01:31.1]} 23. Nc2 {[%clk 0:00:49.9]} 23... Rxd1
{[%clk 0:01:13]} 24. Rxd1 {[%clk 0:00:48.5]} 24... Bd5 {[%clk 0:01:13.4]} 25.
Bxe5 {[%clk 0:00:43.6]} 25... fxe5 {[%clk 0:01:08.7]} 26. Bc4 {[%clk 0:00:42.8]}
26... Be7 {[%clk 0:01:05.1]} 27. Rxd5 {[%clk 0:00:20.5]} 27... exd5 {[%clk
0:01:04.1]} 28. Bxd5+ {[%clk 0:00:21.4]} 28... Kf6 {[%clk 0:01:02.6]} 29. Bc4
{[%clk 0:00:20.4]} 29... b5 {[%clk 0:01:02.3]} 30. Bd3 {[%clk 0:00:20.5]} 30...
Rc3 {[%clk 0:01:03]} 31. Ke2 {[%clk 0:00:20.9]} 31... Rxb3 {[%clk 0:01:03.6]}
32. Kd2 {[%clk 0:00:19.8]} 32... Bxa3 {[%clk 0:01:02.5]} 33. Nxa3 {[%clk
0:00:20]} 33... Rxa3 {[%clk 0:01:03.4]} 34. Bxb5 {[%clk 0:00:20.7]} 34... Ra2+
{[%clk 0:01:03.6]} 0-1

[Event "Late-Titled-Tuesday-Blitz-October-24-2023"]
[Site "Chess.com"]
[Date "2023.10.24"]
[Round "2"]
[White "hellokostya"]
[Black "Beca95"]
[Result "0-1"]
[WhiteElo "2605"]
[BlackElo "2929"]
[TimeControl "180+1"]
[EndTime "14:17:31 PDT"]
[Termination "Beca95 won on time"]

1. d4 {[%clk 0:03:00.9]} 1... Nf6 {[%clk 0:02:57.1]} 2. c4 {[%clk 0:03:00.2]}
2... c5 {[%clk 0:02:55.9]} 3. d5 {[%clk 0:03:00.1]} 3... e6 {[%clk 0:02:53]} 4.
Nc3 {[%clk 0:03:00]} 4... exd5 {[%clk 0:02:53.6]} 5. cxd5 {[%clk 0:03:00.9]}
5... d6 {[%clk 0:02:54.1]} 6. e4 {[%clk 0:02:58.7]} 6... g6 {[%clk 0:02:54.4]}
7. Nge2 {[%clk 0:02:58.5]} 7... Bg7 {[%clk 0:02:49.2]} 8. Ng3 {[%clk 0:02:58.5]}
8... a6 {[%clk 0:02:47.9]} 9. a4 {[%clk 0:02:58.2]} 9... Qe7 {[%clk 0:02:48.1]}
10. Be2 {[%clk 0:02:57.5]} 10... h5 {[%clk 0:02:47.5]} 11. Bg5 {[%clk
0:02:54.7]} 11... Qe5 {[%clk 0:02:47.7]} 12. f4 {[%clk 0:02:47.7]} 12... Qd4
{[%clk 0:02:47.8]} 13. Qc2 {[%clk 0:02:31.7]} 13... h4 {[%clk 0:02:46.3]} 14.
Nf1 {[%clk 0:02:30.3]} 14... Ng4 {[%clk 0:02:42.1]} 15. Bxg4 {[%clk 0:02:21.6]}
15... Bxg4 {[%clk 0:02:43]} 16. h3 {[%clk 0:02:17.7]} 16... Bc8 {[%clk
0:02:41.3]} 17. Rd1 {[%clk 0:01:59.2]} 17... Qb4 {[%clk 0:02:39.7]} 18. f5
{[%clk 0:01:50.3]} 18... Nd7 {[%clk 0:02:35.3]} 19. Ne3 {[%clk 0:01:46.8]} 19...
Ne5 {[%clk 0:02:26.5]} 20. O-O {[%clk 0:01:36.3]} 20... Bd7 {[%clk 0:02:26.5]}
21. fxg6 {[%clk 0:01:29.6]} 21... fxg6 {[%clk 0:02:27.4]} 22. Bf6 {[%clk
0:01:27.8]} 22... Bxf6 {[%clk 0:02:25.7]} 23. Rxf6 {[%clk 0:01:28.7]} 23... Ke7
{[%clk 0:02:24.5]} 24. Rdf1 {[%clk 0:01:26.7]} 24... Rae8 {[%clk 0:02:20.3]} 25.
Kh1 {[%clk 0:01:13]} 25... c4 {[%clk 0:02:15.6]} 26. Qf2 {[%clk 0:01:09.4]}
26... Kd8 {[%clk 0:02:15.1]} 27. Nc2 {[%clk 0:01:06.8]} 27... Qxb2 {[%clk
0:02:14.8]} 28. Rxd6 {[%clk 0:00:48.3]} 28... Qxc3 {[%clk 0:02:09.1]} 29. Qb6+
{[%clk 0:00:48]} 29... Kc8 {[%clk 0:02:05.7]} 30. Rb1 {[%clk 0:00:46.3]} 30...
Qxc2 {[%clk 0:02:01]} 31. Qxb7+ {[%clk 0:00:30.6]} 31... Kd8 {[%clk 0:02:01.2]}
32. Qb6+ {[%clk 0:00:19.5]} 32... Ke7 {[%clk 0:01:58.7]} 33. Rf6 {[%clk
0:00:13]} 33... Qxb1+ {[%clk 0:01:57.8]} 34. Qxb1 {[%clk 0:00:12.6]} 34... Kxf6
{[%clk 0:01:57.9]} 35. Qb6+ {[%clk 0:00:12.3]} 35... Kg7 {[%clk 0:01:57.8]} 36.
Qd4 {[%clk 0:00:11.7]} 36... Rhf8 {[%clk 0:01:57.2]} 37. Kh2 {[%clk 0:00:11.4]}
37... Rf4 {[%clk 0:01:56.5]} 38. d6 {[%clk 0:00:10.6]} 38... g5 {[%clk
0:01:56.5]} 39. Qc5 {[%clk 0:00:09.8]} 39... Kg6 {[%clk 0:01:56.1]} 40. Qc7
{[%clk 0:00:09.5]} 40... Rf2 {[%clk 0:01:55.5]} 41. Kg1 {[%clk 0:00:09.1]} 41...
Rd2 {[%clk 0:01:55.4]} 42. Qc5 {[%clk 0:00:07.6]} 42... Bxh3 {[%clk 0:01:47.9]}
43. gxh3 {[%clk 0:00:04.6]} 43... Rb8 {[%clk 0:01:46.6]} 0-1

[Event "Late-Titled-Tuesday-Blitz-October-24-2023"]
[Site "Chess.com"]
[Date "2023.10.24"]
[Round "2"]
[White "JustusJBargsten"]
[Black "topin8"]
[Result "0-1"]
[WhiteElo "2091"]
[BlackElo "2454"]
[TimeControl "180+1"]
[EndTime "14:17:33 PDT"]
[Termination "topin8 won by resignation"]

1. d4 {[%clk 0:03:00.9]} 1... Nf6 {[%clk 0:02:59.8]} 2. Nc3 {[%clk 0:03:01]}
2... c5 {[%clk 0:02:59.6]} 3. d5 {[%clk 0:02:59.5]} 3... d6 {[%clk 0:02:59.8]}
4. e4 {[%clk 0:02:58.3]} 4... g6 {[%clk 0:03:00]} 5. Bb5+ {[%clk 0:02:58]} 5...
Nfd7 {[%clk 0:02:59.9]} 6. h4 {[%clk 0:02:55]} 6... h5 {[%clk 0:02:14.6]} 7. a4
{[%clk 0:02:49.9]} 7... Bg7 {[%clk 0:02:12.5]} 8. Nge2 {[%clk 0:02:48.9]} 8...
a6 {[%clk 0:02:08.1]} 9. Bd3 {[%clk 0:02:48.3]} 9... Ne5 {[%clk 0:02:08.4]} 10.
Bg5 {[%clk 0:02:46.9]} 10... c4 {[%clk 0:02:06.1]} 11. f4 {[%clk 0:02:37.4]}
11... cxd3 {[%clk 0:02:03.2]} 12. cxd3 {[%clk 0:02:38.1]} 12... Ng4 {[%clk
0:01:59.2]} 13. f5 {[%clk 0:02:23]} 13... Nd7 {[%clk 0:01:36.4]} 14. fxg6 {[%clk
0:02:21.2]} 14... fxg6 {[%clk 0:01:33.6]} 15. Nf4 {[%clk 0:02:20.1]} 15... Qb6
{[%clk 0:00:57.2]} 16. Qe2 {[%clk 0:02:13.3]} 16... O-O {[%clk 0:00:42.4]} 17.
a5 {[%clk 0:01:42.2]} 17... Qb4 {[%clk 0:00:31.1]} 18. Nxg6 {[%clk 0:01:32.2]}
18... Bxc3+ {[%clk 0:00:26.8]} 19. Kd1 {[%clk 0:01:20]} 19... Rf2 {[%clk
0:00:22.3]} 20. Nxe7+ {[%clk 0:01:18.4]} 20... Kh7 {[%clk 0:00:21.5]} 21. Rf1
{[%clk 0:00:52.9]} 21... Qb3+ {[%clk 0:00:20.9]} 22. Kc1 {[%clk 0:00:50.8]}
22... Bxb2+ {[%clk 0:00:20.9]} 23. Kb1 {[%clk 0:00:48.8]} 23... Ba3+ {[%clk
0:00:18.8]} 0-1

[Event "Late-Titled-Tuesday-Blitz-October-24-2023"]
[Site "Chess.com"]
[Date "2023.10.24"]
[Round "2"]
[White "mjelcic"]
[Black "artin10862"]
[Result "0-1"]
[WhiteElo "2152"]
[BlackElo "2845"]
[TimeControl "180+1"]
[EndTime "14:17:35 PDT"]
[Termination "artin10862 won by checkmate"]

1. c4 {[%clk 0:03:00.9]} 1... Nf6 {[%clk 0:02:55.6]} 2. Nc3 {[%clk 0:02:59.4]}
2... g6 {[%clk 0:02:50.1]} 3. g3 {[%clk 0:02:54.1]} 3... Bg7 {[%clk 0:02:49.8]}
4. Bg2 {[%clk 0:02:54.3]} 4... c6 {[%clk 0:02:50.4]} 5. e4 {[%clk 0:02:48.8]}
5... e5 {[%clk 0:02:48.3]} 6. Nge2 {[%clk 0:02:46.1]} 6... O-O {[%clk
0:02:46.6]} 7. O-O {[%clk 0:02:45.9]} 7... a6 {[%clk 0:02:44]} 8. d4 {[%clk
0:02:32.8]} 8... d6 {[%clk 0:02:43]} 9. h3 {[%clk 0:02:25.6]} 9... b5 {[%clk
0:02:40.3]} 10. b3 {[%clk 0:02:16.1]} 10... Be6 {[%clk 0:02:30.5]} 11. d5 {[%clk
0:02:10]} 11... cxd5 {[%clk 0:02:29.1]} 12. Nxd5 {[%clk 0:02:04.4]} 12... Bxd5
{[%clk 0:02:22.3]} 13. cxd5 {[%clk 0:02:04.6]} 13... Nbd7 {[%clk 0:02:21.4]} 14.
Be3 {[%clk 0:01:58.1]} 14... h5 {[%clk 0:02:21.7]} 15. Rc1 {[%clk 0:01:52.6]}
15... Kh7 {[%clk 0:02:21.7]} 16. Rc6 {[%clk 0:01:51.9]} 16... Nb8 {[%clk
0:02:20.7]} 17. Bb6 {[%clk 0:01:44.8]} 17... Qe8 {[%clk 0:02:18.7]} 18. Rc7
{[%clk 0:01:23.3]} 18... Nbd7 {[%clk 0:02:16]} 19. Be3 {[%clk 0:01:23.2]} 19...
Bh6 {[%clk 0:02:15.4]} 20. Qd2 {[%clk 0:01:22.5]} 20... Bxe3 {[%clk 0:02:14.7]}
21. Qxe3 {[%clk 0:01:22.1]} 21... Rc8 {[%clk 0:02:11.9]} 22. Rfc1 {[%clk
0:01:21.7]} 22... Rxc7 {[%clk 0:02:11.8]} 23. Rxc7 {[%clk 0:01:22.5]} 23... Qb8
{[%clk 0:02:12]} 24. Rc6 {[%clk 0:01:19.4]} 24... Rc8 {[%clk 0:02:11.1]} 25. Qc3
{[%clk 0:01:18.9]} 25... Nb6 {[%clk 0:02:07.5]} 26. h4 {[%clk 0:01:10.9]} 26...
Rxc6 {[%clk 0:02:06.2]} 27. Qxc6 {[%clk 0:01:10.5]} 27... b4 {[%clk 0:02:04]}
28. Nc1 {[%clk 0:01:03.6]} 28... a5 {[%clk 0:02:02.6]} 29. Nd3 {[%clk
0:01:03.3]} 29... Kg7 {[%clk 0:01:58]} 30. Nb2 {[%clk 0:01:03]} 30... Nbd7
{[%clk 0:01:57.1]} 31. Nc4 {[%clk 0:01:01.6]} 31... Nc5 {[%clk 0:01:54]} 32.
Qxd6 {[%clk 0:00:59.4]} 32... Qa7 {[%clk 0:01:53.3]} 33. Qxe5 {[%clk 0:00:58.7]}
33... Nd3 {[%clk 0:01:52.9]} 34. Qa1 {[%clk 0:00:47.6]} 34... Qxf2+ {[%clk
0:01:51.4]} 35. Kh1 {[%clk 0:00:47.7]} 35... Qxg3 {[%clk 0:01:33.8]} 36. e5
{[%clk 0:00:47.4]} 36... Nf2+ {[%clk 0:01:31.1]} 37. Kg1 {[%clk 0:00:46.8]}
37... Nh3+ {[%clk 0:01:31.7]} 38. Kh1 {[%clk 0:00:46.7]} 38... Ng4 {[%clk
0:01:32.3]} 39. e6+ {[%clk 0:00:46.2]} 39... Kh7 {[%clk 0:01:32.4]} 40. Qe5
{[%clk 0:00:18.6]} 40... Ngf2# {[%clk 0:01:27]} 0-1

[Event "Late-Titled-Tuesday-Blitz-October-24-2023"]
[Site "Chess.com"]
[Date "2023.10.24"]
[Round "2"]
[White "HeroRubiksCube"]
[Black "cassoulet"]
[Result "0-1"]
[WhiteElo "2557"]
[BlackElo "2792"]
[TimeControl "180+1"]
[EndTime "14:17:44 PDT"]
[Termination "cassoulet won by resignation"]

1. e4 {[%clk 0:03:00.9]} 1... c5 {[%clk 0:02:59.6]} 2. Nf3 {[%clk 0:03:00.2]}
2... e6 {[%clk 0:03:00.1]} 3. g3 {[%clk 0:02:59.6]} 3... Nf6 {[%clk 0:02:59.1]}
4. Nc3 {[%clk 0:02:54.7]} 4... d5 {[%clk 0:02:58.9]} 5. exd5 {[%clk 0:02:54.3]}
5... Nxd5 {[%clk 0:02:57]} 6. Nxd5 {[%clk 0:02:52.6]} 6... exd5 {[%clk
0:02:56.5]} 7. Bg2 {[%clk 0:02:53.1]} 7... Be7 {[%clk 0:02:56.3]} 8. O-O {[%clk
0:02:53.6]} 8... O-O {[%clk 0:02:56.8]} 9. d4 {[%clk 0:02:54.2]} 9... Nc6 {[%clk
0:02:54.4]} 10. Be3 {[%clk 0:02:47.6]} 10... c4 {[%clk 0:02:53.6]} 11. c3 {[%clk
0:02:46.5]} 11... Qb6 {[%clk 0:02:52.7]} 12. Qd2 {[%clk 0:02:45.4]} 12... Bf5
{[%clk 0:02:50.6]} 13. Ne5 {[%clk 0:02:44.8]} 13... Rad8 {[%clk 0:02:47.3]} 14.
Rfe1 {[%clk 0:02:43.4]} 14... Nxe5 {[%clk 0:02:43.9]} 15. dxe5 {[%clk
0:02:43.2]} 15... Bc5 {[%clk 0:02:41.4]} 16. Bxc5 {[%clk 0:02:31.2]} 16... Qxc5
{[%clk 0:02:42.3]} 17. Rad1 {[%clk 0:02:31.4]} 17... Bd3 {[%clk 0:02:40.3]} 18.
Bf1 {[%clk 0:02:26.4]} 18... Bf5 {[%clk 0:02:20]} 19. Qf4 {[%clk 0:02:20.2]}
19... Be6 {[%clk 0:02:14.3]} 20. Rd2 {[%clk 0:02:13.8]} 20... Rfe8 {[%clk
0:02:12.8]} 21. Red1 {[%clk 0:02:13.1]} 21... h6 {[%clk 0:02:13.1]} 22. h4
{[%clk 0:02:12.1]} 22... Qa5 {[%clk 0:02:11.8]} 23. a3 {[%clk 0:02:08.5]} 23...
Qc7 {[%clk 0:02:11.7]} 24. Bg2 {[%clk 0:02:06.3]} 24... Qc5 {[%clk 0:02:05]} 25.
Qd4 {[%clk 0:01:56.7]} 25... Qa5 {[%clk 0:02:02.5]} 26. h5 {[%clk 0:01:46.6]}
26... a6 {[%clk 0:02:00.2]} 27. Qa7 {[%clk 0:01:30.3]} 27... Rd7 {[%clk
0:01:51.5]} 28. Qd4 {[%clk 0:01:18.3]} 28... Qd8 {[%clk 0:01:45.2]} 29. Qf4
{[%clk 0:01:17.2]} 29... Qb6 {[%clk 0:01:35.2]} 30. Bxd5 {[%clk 0:01:03.7]}
30... Bxd5 {[%clk 0:01:31]} 31. Rxd5 {[%clk 0:01:04.2]} 31... Rxd5 {[%clk
0:01:30.9]} 32. Rxd5 {[%clk 0:01:05.1]} 32... Qxb2 {[%clk 0:01:31]} 33. Rd7
{[%clk 0:01:04.1]} 33... Rf8 {[%clk 0:01:27]} 34. e6 {[%clk 0:01:02.8]} 34...
fxe6 {[%clk 0:01:11.2]} 35. Qd4 {[%clk 0:01:00]} 35... Qc1+ {[%clk 0:01:06.6]}
36. Kg2 {[%clk 0:00:58.2]} 36... Qg5 {[%clk 0:01:06.7]} 37. Qxc4 {[%clk
0:00:50]} 37... Qf5 {[%clk 0:01:05.9]} 38. Qd4 {[%clk 0:00:45.7]} 38... e5
{[%clk 0:01:01.8]} 39. Qd5+ {[%clk 0:00:41.5]} 39... Kh8 {[%clk 0:01:01.8]} 40.
Qd2 {[%clk 0:00:38]} 40... Qxh5 {[%clk 0:00:56.9]} 41. Rxb7 {[%clk 0:00:36.3]}
41... Qf3+ {[%clk 0:00:56.8]} 0-1

[Event "Late-Titled-Tuesday-Blitz-October-24-2023"]
[Site "Chess.com"]
[Date "2023.10.24"]
[Round "2"]
[White "nitpicker"]
[Black "Kleyton_Lima"]
[Result "0-1"]
[WhiteElo "2253"]
[BlackElo "2503"]
[TimeControl "180+1"]
[EndTime "14:17:44 PDT"]
[Termination "Kleyton_Lima won on time"]

1. d4 {[%clk 0:03:00.9]} 1... Nf6 {[%clk 0:02:59.7]} 2. c4 {[%clk 0:03:00.7]}
2... e6 {[%clk 0:03:00.3]} 3. g3 {[%clk 0:02:59.3]} 3... Bb4+ {[%clk 0:02:58.8]}
4. Bd2 {[%clk 0:02:59.5]} 4... Be7 {[%clk 0:02:58.5]} 5. Nf3 {[%clk 0:02:58.3]}
5... d5 {[%clk 0:02:59]} 6. Bg2 {[%clk 0:02:57.6]} 6... O-O {[%clk 0:02:59]} 7.
Qc2 {[%clk 0:02:58]} 7... c6 {[%clk 0:02:58.6]} 8. O-O {[%clk 0:02:57.8]} 8...
Nbd7 {[%clk 0:02:58]} 9. Rd1 {[%clk 0:02:55.8]} 9... b6 {[%clk 0:02:56.7]} 10.
Bf4 {[%clk 0:02:54.8]} 10... Bb7 {[%clk 0:02:56.2]} 11. Nc3 {[%clk 0:02:51.1]}
11... dxc4 {[%clk 0:02:55.4]} 12. Nd2 {[%clk 0:02:48.6]} 12... Nd5 {[%clk
0:02:51.5]} 13. Nxc4 {[%clk 0:02:46.9]} 13... Nxf4 {[%clk 0:02:51.1]} 14. gxf4
{[%clk 0:02:47.8]} 14... Rc8 {[%clk 0:02:49.2]} 15. Rac1 {[%clk 0:02:39.6]}
15... Qc7 {[%clk 0:02:29.7]} 16. e3 {[%clk 0:02:32]} 16... Qb8 {[%clk
0:02:29.6]} 17. Ne5 {[%clk 0:02:23]} 17... Nxe5 {[%clk 0:02:21.2]} 18. fxe5
{[%clk 0:02:17.7]} 18... c5 {[%clk 0:02:22.1]} 19. Be4 {[%clk 0:02:11.2]} 19...
g6 {[%clk 0:02:19.7]} 20. Qe2 {[%clk 0:02:05.6]} 20... cxd4 {[%clk 0:02:19.1]}
21. exd4 {[%clk 0:02:04.5]} 21... Rfd8 {[%clk 0:02:09.4]} 22. Qf3 {[%clk
0:01:49.8]} 22... Bxe4 {[%clk 0:02:05.3]} 23. Qxe4 {[%clk 0:01:37.2]} 23... Bg5
{[%clk 0:02:00.2]} 24. f4 {[%clk 0:01:31.8]} 24... Be7 {[%clk 0:01:59.6]} 25. d5
{[%clk 0:01:26.2]} 25... exd5 {[%clk 0:01:59.2]} 26. Nxd5 {[%clk 0:01:23.2]}
26... Bc5+ {[%clk 0:01:52]} 27. Kg2 {[%clk 0:01:05.6]} 27... Qa8 {[%clk
0:01:52.9]} 28. Rd3 {[%clk 0:00:48.8]} 28... Bf8 {[%clk 0:01:50.1]} 29. Rcd1
{[%clk 0:00:46.2]} 29... Rc2+ {[%clk 0:01:48.9]} 30. Kh1 {[%clk 0:00:40.1]}
30... Kh8 {[%clk 0:01:48.9]} 31. Rh3 {[%clk 0:00:29.4]} 31... Rc5 {[%clk
0:01:40.1]} 32. Rhd3 {[%clk 0:00:23.6]} 32... Rc2 {[%clk 0:01:36]} 33. Rh3
{[%clk 0:00:22]} 33... Rc5 {[%clk 0:01:35.7]} 34. Rhd3 {[%clk 0:00:21.5]} 34...
Rdc8 {[%clk 0:01:32.4]} 35. Rh3 {[%clk 0:00:16]} 35... Rc1 {[%clk 0:01:32.4]}
36. Rd3 {[%clk 0:00:14.4]} 36... Rxd1+ {[%clk 0:01:32.4]} 37. Rxd1 {[%clk
0:00:15]} 37... Rd8 {[%clk 0:01:32.9]} 38. Rd3 {[%clk 0:00:14.6]} 38... Qc6
{[%clk 0:01:32.7]} 39. h4 {[%clk 0:00:11.2]} 39... Qc1+ {[%clk 0:01:32.3]} 40.
Kg2 {[%clk 0:00:10.4]} 40... Bc5 {[%clk 0:01:32.7]} 41. Ne3 {[%clk 0:00:08.1]}
41... Rxd3 {[%clk 0:01:30.1]} 42. Qa8+ {[%clk 0:00:05.9]} 42... Kg7 {[%clk
0:01:29.9]} 0-1

[Event "Late-Titled-Tuesday-Blitz-October-24-2023"]
[Site "Chess.com"]
[Date "2023.10.24"]
[Round "2"]
[White "KorolDimitriy75"]
[Black "FedaMaster"]
[Result "0-1"]
[WhiteElo "2347"]
[BlackElo "2655"]
[TimeControl "180+1"]
[EndTime "14:17:45 PDT"]
[Termination "FedaMaster won on time"]

1. d4 {[%clk 0:02:57.8]} 1... d5 {[%clk 0:02:55.2]} 2. c4 {[%clk 0:02:58.4]}
2... c6 {[%clk 0:02:49.8]} 3. Nc3 {[%clk 0:02:59]} 3... e6 {[%clk 0:02:46.4]} 4.
e3 {[%clk 0:02:58.9]} 4... f5 {[%clk 0:02:43.8]} 5. f4 {[%clk 0:02:58.9]} 5...
Nf6 {[%clk 0:02:43.1]} 6. Nf3 {[%clk 0:02:59.5]} 6... Bd6 {[%clk 0:02:37.7]} 7.
Be2 {[%clk 0:02:59.1]} 7... O-O {[%clk 0:02:37.9]} 8. O-O {[%clk 0:02:59.1]}
8... Bd7 {[%clk 0:02:38.1]} 9. Qb3 {[%clk 0:02:54.3]} 9... Qb6 {[%clk
0:02:36.1]} 10. c5 {[%clk 0:02:41.5]} 10... Qxb3 {[%clk 0:02:35.8]} 11. axb3
{[%clk 0:02:42.4]} 11... Bc7 {[%clk 0:02:33.6]} 12. b4 {[%clk 0:02:42.4]} 12...
Be8 {[%clk 0:02:28.9]} 13. b5 {[%clk 0:02:29.6]} 13... cxb5 {[%clk 0:02:28.3]}
14. Nxb5 {[%clk 0:02:19.8]} 14... Bxb5 {[%clk 0:02:27.3]} 15. Bxb5 {[%clk
0:02:20.5]} 15... Nc6 {[%clk 0:02:25.5]} 16. Bd2 {[%clk 0:02:10.3]} 16... Ne4
{[%clk 0:02:25.4]} 17. Rfb1 {[%clk 0:01:43.5]} 17... a6 {[%clk 0:02:19.8]} 18.
Be2 {[%clk 0:01:36.3]} 18... h6 {[%clk 0:01:59.8]} 19. Be1 {[%clk 0:01:25.6]}
19... g5 {[%clk 0:01:59.1]} 20. g3 {[%clk 0:01:23]} 20... Kf7 {[%clk 0:01:55.6]}
21. Nd2 {[%clk 0:01:06.1]} 21... gxf4 {[%clk 0:01:49.4]} 22. Nxe4 {[%clk
0:00:57.7]} 22... fxe4 {[%clk 0:01:49.9]} 23. gxf4 {[%clk 0:00:57.5]} 23... Rg8+
{[%clk 0:01:50.8]} 24. Kh1 {[%clk 0:00:57]} 24... Ke7 {[%clk 0:01:44.1]} 25. b4
{[%clk 0:00:52.2]} 25... Kd7 {[%clk 0:01:41.3]} 26. Ra2 {[%clk 0:00:25.4]} 26...
Na7 {[%clk 0:01:31.3]} 27. Rba1 {[%clk 0:00:09.4]} 27... Kc6 {[%clk 0:01:28.9]}
28. Bd2 {[%clk 0:00:04.9]} 28... Nb5 {[%clk 0:01:29]} 29. Rf1 {[%clk 0:00:02.5]}
29... Raf8 {[%clk 0:01:28.6]} 30. Raa1 {[%clk 0:00:02.4]} 30... Rg7 {[%clk
0:01:23.9]} 31. Rg1 {[%clk 0:00:03]} 31... Rfg8 {[%clk 0:01:24.5]} 32. Rxg7
{[%clk 0:00:02.7]} 32... Rxg7 {[%clk 0:01:25.4]} 33. Rg1 {[%clk 0:00:02.9]}
33... Rxg1+ {[%clk 0:01:26.1]} 34. Kxg1 {[%clk 0:00:03.8]} 34... Na3 {[%clk
0:01:26.5]} 35. Kf2 {[%clk 0:00:03.6]} 35... Nc4 {[%clk 0:01:22.2]} 36. Bc1
{[%clk 0:00:02.2]} 36... Kb5 {[%clk 0:01:22.6]} 37. Kg3 {[%clk 0:00:01.1]} 37...
Kxb4 {[%clk 0:01:22.1]} 0-1